[Event "FIDE Grand Swiss 2023"]
[Site "Villa Marina, Douglas, Isle of Man"]
[Date "2023.11.02"]
[Round "8.37"]
[White "Gupta, Abhijeet"]
[Black "Martirosyan, Haik M."]
[Result "1/2-1/2"]
[WhiteElo "2609"]
[BlackElo "2696"]
[EventDate "2023.10.25"]
[ECO "D35"]
[PlyCount "229"]
[BlackClock "00:02:10"]
[BlackFideId "13306553"]
[TimeControl "40/100 + 20/50 + 15 + 30s/move"]
[WhiteClock "00:02:38"]
[WhiteFideId "5010608"]

1.d4 {[%clk 01:40:52][%emt 00:00:07]} 1...Nf6 {[%clk 01:40:52][%emt 00:00:09]} 
2.c4 {[%clk 01:41:08][%emt 00:00:15]} 2...e6 {[%clk 01:41:15][%emt 00:00:06]} 
3.Nf3 {[%clk 01:41:26][%emt 00:00:12]} 3...d5 {[%clk 01:41:36][%emt 00:00:09]} 
4.Nc3 {[%clk 01:41:31][%emt 00:00:25]} 4...Nbd7 {[%clk 01:41:55][%emt 00:00:11]} 
5.cxd5 {[%clk 01:41:29][%emt 00:00:32]} 5...exd5 {[%clk 01:42:16][%emt
00:00:08]} 6.Qc2 {[%clk 01:41:43][%emt 00:00:17]} 6...Bb4 {[%clk 01:40:06][%emt
00:02:41]} 7.Bf4 {[%clk 01:41:42][%emt 00:00:31]} 7...Ne4 {[%clk 01:33:10][%emt
00:07:25]} 8.g3 {[%clk 01:31:40][%emt 00:10:32]} 8...c6 {[%clk 01:26:59][%emt
00:06:41]} 9.Bg2 {[%clk 01:31:56][%emt 00:00:15]} 9...Qa5 {[%clk 01:26:17][%emt
00:01:12]} 10.Bd2 {[%clk 01:30:25][%emt 00:02:01]} 10...Nxd2 {[%clk
01:24:22][%emt 00:02:24]} 11.Nxd2 {[%clk 01:30:18][%emt 00:00:36]} 11...O-O 
{[%clk 01:23:10][%emt 00:01:42]} 12.O-O {[%clk 01:30:01][%emt 00:00:48]} 
12...Qd8 {[%clk 01:21:53][%emt 00:01:47]} 13.a3 {[%clk 01:29:41][%emt 00:00:51]} 
13...Be7 {[%clk 01:21:02][%emt 00:01:19]} 14.b4 {[%clk 01:29:54][%emt 00:00:18]} 
14...a6 {[%clk 01:15:33][%emt 00:06:00]} 15.Nb3 {[%clk 01:24:43][%emt 00:05:40]} 
15...Nf6 {[%clk 01:14:37][%emt 00:01:26]} 16.Nc5 {[%clk 01:24:52][%emt
00:00:22]} 16...g6 {[%clk 01:11:32][%emt 00:03:34]} 17.Qb3 {[%clk 01:22:18][%emt
00:03:04]} 17...Rb8 {[%clk 01:09:42][%emt 00:02:20]} 18.Rad1 {[%clk
01:20:22][%emt 00:02:26]} 18...Bf5 {[%clk 01:04:58][%emt 00:05:13]} 19.Rfe1 
{[%clk 01:02:40][%emt 00:18:13]} 19...Re8 {[%clk 01:00:22][%emt 00:05:06]} 
20.e4 {[%clk 01:00:51][%emt 00:02:19]} 20...dxe4 {[%clk 00:58:37][%emt
00:02:15]} 21.N3xe4 {[%clk 01:01:10][%emt 00:00:11]} 21...Bxc5 {[%clk
00:48:23][%emt 00:10:44]} 22.dxc5 {[%clk 00:43:24][%emt 00:18:16]} 22...Qe7 
{[%clk 00:48:06][%emt 00:00:48]} 23.Nxf6+ {[%clk 00:41:13][%emt 00:02:41]} 
23...Qxf6 {[%clk 00:48:22][%emt 00:00:13]} 24.Qf3 {[%clk 00:41:26][%emt
00:00:17]} 24...Kg7 {[%clk 00:46:09][%emt 00:02:42]} 25.h4 {[%clk 00:32:08][%emt
00:09:49]} 25...h5 {[%clk 00:43:47][%emt 00:02:52]} 26.Qf4 {[%clk 00:27:28][%emt
00:05:11]} 26...Rbd8 {[%clk 00:29:12][%emt 00:15:05]} 27.Bf1 {[%clk
00:24:26][%emt 00:03:32]} 27...Re4 {[%clk 00:23:21][%emt 00:06:20]} 28.Qc1 
{[%clk 00:21:59][%emt 00:02:57]} 28...Rxe1 {[%clk 00:20:49][%emt 00:03:02]} 
29.Rxe1 {[%clk 00:22:25][%emt 00:00:04]} 29...Be6 {[%clk 00:15:55][%emt
00:05:24]} 30.Qe3 {[%clk 00:17:41][%emt 00:05:14]} 30...Rd4 {[%clk
00:11:12][%emt 00:05:13]} 31.Bg2 {[%clk 00:16:23][%emt 00:01:48]} 31...Rd7 
{[%clk 00:08:19][%emt 00:03:23]} 32.Qc1 {[%clk 00:13:31][%emt 00:03:21]} 
32...Bg4 {[%clk 00:07:27][%emt 00:01:22]} 33.Qe3 {[%clk 00:11:30][%emt
00:02:32]} 33...Bf5 {[%clk 00:06:50][%emt 00:01:08]} 34.Bf1 {[%clk
00:11:38][%emt 00:00:21]} 34...Be6 {[%clk 00:05:02][%emt 00:02:18]} 35.Qc1 
{[%clk 00:11:32][%emt 00:00:37]} 35...Qd4 {[%clk 00:04:53][%emt 00:00:38]} 
36.Bg2 {[%clk 00:11:14][%emt 00:00:48]} 36...Bf5 {[%clk 00:04:14][%emt
00:01:09]} 37.Bf3 {[%clk 00:10:46][%emt 00:00:58]} 37...Qf6 {[%clk
00:04:10][%emt 00:00:34]} 38.Rd1 {[%clk 00:08:22][%emt 00:02:54]} 38...Re7 
{[%clk 00:01:24][%emt 00:03:16]} 39.Rd6 {[%clk 00:04:44][%emt 00:04:08]} 
39...Qe5 {[%clk 00:01:18][%emt 00:00:36]} 40.Kg2 {[%clk 00:04:44][%emt
00:00:29]} 40...Be6 {[%clk 00:00:35][%emt 00:01:14]} 41.Qd2 {[%clk
00:43:19][%emt 00:11:55]} 41...Re8 {[%clk 00:43:20][%emt 00:07:45]} 42.a4 
{[%clk 00:37:52][%emt 00:05:57]} 42...a5 {[%clk 00:37:06][%emt 00:06:44]} 
43.bxa5 {[%clk 00:35:44][%emt 00:02:39]} 43...Bc4 {[%clk 00:33:29][%emt
00:04:07]} 44.Qb4 {[%clk 00:26:52][%emt 00:09:21]} 44...Ba6 {[%clk
00:33:12][%emt 00:00:48]} 45.Rd1 {[%clk 00:26:37][%emt 00:00:45]} 45...Qf5 
{[%clk 00:30:32][%emt 00:03:10]} 46.Qc3+ {[%clk 00:26:05][%emt 00:01:02]} 
46...Qf6 {[%clk 00:30:07][%emt 00:00:55]} 47.Qc2 {[%clk 00:23:34][%emt
00:03:00]} 47...Re5 {[%clk 00:29:55][%emt 00:00:42]} 48.Rc1 {[%clk
00:21:59][%emt 00:02:04]} 48...Kh7 {[%clk 00:27:48][%emt 00:02:38]} 49.Qc3 
{[%clk 00:20:00][%emt 00:02:29]} 49...Qf5 {[%clk 00:27:23][%emt 00:00:55]} 
50.Qd4 {[%clk 00:19:43][%emt 00:00:47]} 50...Re7 {[%clk 00:26:53][%emt
00:01:00]} 51.Qd2 {[%clk 00:12:40][%emt 00:07:33]} 51...Rd7 {[%clk
00:25:40][%emt 00:01:43]} 52.Qe1 {[%clk 00:11:56][%emt 00:01:15]} 52...Rd4 
{[%clk 00:25:01][%emt 00:01:08]} 53.Qe7 {[%clk 00:10:44][%emt 00:01:43]} 
53...Kg7 {[%clk 00:21:16][%emt 00:04:15]} 54.Re1 {[%clk 00:02:34][%emt
00:08:40]} 54...Rxa4 {[%clk 00:18:17][%emt 00:03:28]} 55.Qd6 {[%clk
00:01:13][%emt 00:01:50]} 55...Ra3 {[%clk 00:17:57][%emt 00:00:51]} 56.Be4 
{[%clk 00:00:54][%emt 00:00:49]} 56...Qf6 {[%clk 00:18:12][%emt 00:00:15]} 
57.Qd2 {[%clk 00:00:45][%emt 00:00:39]} 57...Qc3 {[%clk 00:16:46][%emt
00:01:56]} 58.Qg5 {[%clk 00:00:47][%emt 00:00:28]} 58...Ra4 {[%clk
00:15:23][%emt 00:01:54]} 59.Rc1 {[%clk 00:00:42][%emt 00:00:35]} 59...Qf6 
{[%clk 00:11:03][%emt 00:04:49]} 60.Qxf6+ {[%clk 00:00:40][%emt 00:00:33]} 
60...Kxf6 {[%clk 00:11:32][%emt 00:00:01]} 61.Kf3 {[%clk 00:13:13][%emt
00:02:56]} 61...Rxa5 {[%clk 00:23:02][%emt 00:04:00]} 62.Rc3 {[%clk
00:12:19][%emt 00:01:24]} 62...Ke6 {[%clk 00:18:32][%emt 00:05:00]} 63.Ke3 
{[%clk 00:12:10][%emt 00:00:39]} 63...Ra4 {[%clk 00:17:38][%emt 00:01:24]} 
64.Bc2 {[%clk 00:11:57][%emt 00:00:43]} 64...Rb4 {[%clk 00:17:38][%emt
00:00:31]} 65.Bb3+ {[%clk 00:11:56][%emt 00:00:30]} 65...Ke7 {[%clk
00:15:56][%emt 00:02:12]} 66.Kd2 {[%clk 00:11:43][%emt 00:00:43]} 66...Rd4+ 
{[%clk 00:15:28][%emt 00:00:57]} 67.Kc2 {[%clk 00:11:55][%emt 00:00:18]} 
67...Kf8 {[%clk 00:13:10][%emt 00:02:49]} 68.Rf3 {[%clk 00:11:40][%emt
00:00:44]} 68...Rd7 {[%clk 00:13:23][%emt 00:00:18]} 69.Kc3 {[%clk
00:11:57][%emt 00:00:13]} 69...Kg7 {[%clk 00:12:45][%emt 00:01:08]} 70.Re3 
{[%clk 00:12:02][%emt 00:00:24]} 70...Bf1 {[%clk 00:12:17][%emt 00:00:59]} 
71.f3 {[%clk 00:07:52][%emt 00:04:40]} 71...Kf6 {[%clk 00:08:13][%emt 00:04:34]} 
72.g4 {[%clk 00:07:45][%emt 00:00:37]} 72...Bh3 {[%clk 00:07:29][%emt 00:01:14]} 
73.Re4 {[%clk 00:06:23][%emt 00:01:53]} 73...hxg4 {[%clk 00:07:15][%emt
00:00:44]} 74.fxg4 {[%clk 00:06:18][%emt 00:00:34]} 74...g5 {[%clk
00:07:40][%emt 00:00:04]} 75.h5 {[%clk 00:05:27][%emt 00:01:21]} 75...Kg7 
{[%clk 00:07:48][%emt 00:00:22]} 76.Bc4 {[%clk 00:04:37][%emt 00:01:21]} 
76...Kh6 {[%clk 00:07:27][%emt 00:00:51]} 77.Be2 {[%clk 00:04:10][%emt
00:00:56]} 77...Bg2 {[%clk 00:06:49][%emt 00:01:09]} 78.Re8 {[%clk
00:03:37][%emt 00:01:03]} 78...Bd5 {[%clk 00:07:17][%emt 00:00:03]} ( 78...Be4 
{[%emt 00:00:02]} ) 79.Re5 {[%clk 00:03:27][%emt 00:00:39]} 79...Be6 {[%clk
00:07:29][%emt 00:00:18]} 80.Bf3 {[%clk 00:02:49][%emt 00:01:08]} 80...Rd8 
{[%clk 00:07:31][%emt 00:00:28]} 81.Be2 {[%clk 00:02:57][%emt 00:00:22]} 
81...Ra8 {[%clk 00:07:28][%emt 00:00:34]} 82.Re4 {[%clk 00:03:06][%emt
00:00:19]} 82...Ra2 {[%clk 00:07:24][%emt 00:00:35]} 83.Kd4 {[%clk
00:03:02][%emt 00:00:34]} 83...Kg7 {[%clk 00:06:34][%emt 00:01:20]} 84.Kc3 
{[%clk 00:02:57] [%emt 00:00:35]} 84...Bd5 {[%clk 00:06:30][%emt 00:00:34]} 
85.Re5 {[%clk 00:02:27][%emt 00:01:00]} 85...Be6 {[%clk 00:06:22][%emt
00:00:38]} 86.Re4 {[%clk 00:02:57][%emt 00:00:35]} 86...Kf6 {[%clk
00:06:33][%emt 00:00:19]} 87.Bd3 {[%clk 00:01:40][%emt 00:00:55]} 87...Ra3+ 
{[%clk 00:06:27][%emt 00:00:36]} 88.Kd2 {[%clk 00:01:43][%emt 00:00:27]} 
88...Kg7 {[%clk 00:06:21][%emt 00:00:37]} 89.Re5 {[%clk 00:01:45][%emt
00:00:27]} 89...Kh6 {[%clk 00:06:30][%emt 00:00:21]} 90.Bf5 {[%clk
00:02:00][%emt 00:00:15]} 90...Bd5 {[%clk 00:06:20][%emt 00:00:40]} 91.Re8 
{[%clk 00:01:47][%emt 00:00:42]} 91...Kg7 {[%clk 00:06:39][%emt 00:00:12]} 
92.Rd8 {[%clk 00:01:55][%emt 00:00:22]} 92...Rh3 {[%clk 00:04:24][%emt
00:02:45]} 93.Rd6 {[%clk 00:02:04][%emt 00:00:21]} 93...Bf3 {[%clk
00:04:29][%emt 00:00:25]} 94.Rd7 {[%clk 00:01:32][%emt 00:01:02]} 94...Kf6 
{[%clk 00:04:10][%emt 00:00:49]} 95.Rxb7 {[%clk 00:01:30][%emt 00:00:32]} 
95...Bd5 {[%clk 00:04:39][%emt 00:00:01]} 96.Rb6 {[%clk 00:00:54][%emt
00:01:06]} 96...Ke5 {[%clk 00:04:39][%emt 00:00:30]} 97.Rb4 {[%clk
00:01:15][%emt 00:00:10]} 97...Bf3 {[%clk 00:04:00][%emt 00:01:08]} 98.Rb3 
{[%clk 00:00:45][%emt 00:01:00]} 98...Kf4 {[%clk 00:03:33][%emt 00:00:57]} 
99.Rb4+ {[%clk 00:00:56][%emt 00:00:19]} 99...Kg3 {[%clk 00:03:40][%emt
00:00:24]} 100.Rd4 {[%clk 00:01:14] [%emt 00:00:12]} 100...Kf2 {[%clk 00:03:07]
[%emt 00:01:02]} 101.Rd7 {[%clk 00:01:34][%emt 00:00:10]} 101...Kg3 {[%clk
00:03:03][%emt 00:00:34]} 102.Rd4 {[%clk 00:01:14][%emt 00:00:12]} 102...Kf2 
{[%clk 00:03:07][%emt 00:01:02]} 103.Rd6 {[%clk 00:01:49][%emt 00:00:29]} 
103...Kg3 {[%clk 00:03:27][%emt 00:00:35]} 104.Rd3 {[%clk 00:01:43][%emt
00:00:36]} 104...Kf4 {[%clk 00:03:01][%emt 00:00:57]} 105.Kc3 {[%clk
00:01:47][%emt 00:00:25]} 105...Rh4 {[%clk 00:03:11][%emt 00:00:21]} 106.Rd4+ 
{[%clk 00:01:21][%emt 00:00:55]} 106...Ke5 {[%clk 00:03:39]} 107.Ra4 {[%clk
00:01:06][%emt 00:00:46]} 107...Kd5 {[%clk 00:03:23][%emt 00:00:47]} 108.Ra7 
{[%clk 00:01:01][%emt 00:00:34]} 108...f6 {[%clk 00:01:44][%emt 00:02:10]} 
109.Rf7 {[%clk 00:01:02][%emt 00:00:28]} 109...Bxg4 {[%clk 00:01:18][%emt
00:00:56]} 110.Bxg4 {[%clk 00:01:25][%emt 00:00:07]} 110...Rxg4 {[%clk
00:01:45][%emt 00:00:03]} 111.Rxf6 {[%clk 00:01:50][%emt 00:00:05]} 111...Kxc5 
{[%clk 00:01:58][%emt 00:00:17]} 112.Rf5+ {[%clk 00:01:54][%emt 00:00:27]} 
112...Kd6 {[%clk 00:02:18][%emt 00:00:10]} 113.h6 {[%clk 00:02:20][%emt
00:00:04]} 113...Ke6 {[%clk 00:02:16][%emt 00:00:32]} 114.Rc5 {[%clk
00:02:30][%emt 00:00:19]} 114...Rh4 {[%clk 00:02:12] [%emt 00:00:34]} 115.Rxg5 
{[%clk 00:02:38] [%emt 00:00:22]} 1/2-1/2

[Event "FIDE Grand Swiss 2023"]
[Site "Villa Marina, Douglas, Isle of Man"]
[Date "2023.11.02"]
[Round "8.41"]
[White "Mishra, Abhimanyu"]
[Black "Amin, Bassem"]
[Result "1/2-1/2"]
[WhiteElo "2592"]
[BlackElo "2680"]
[EventDate "2023.10.25"]
[ECO "C50"]
[PlyCount "81"]
[BlackClock "01:23:38"]
[BlackFideId "10601457"]
[TimeControl "40/100 + 20/50 + 15 + 30s/move"]
[WhiteClock "00:49:55"]
[WhiteFideId "30920019"]

1.e4 {[%clk 01:40:59]} 1...e5 {[%clk 01:40:13][%emt 00:00:47]} 2.Nf3 {[%clk
01:41:23][%emt 00:00:06]} 2...Nc6 {[%clk 01:40:39][%emt 00:00:04]} 3.Bc4 {[%clk
01:41:47][%emt 00:00:06]} 3...Nf6 {[%clk 01:41:02][%emt 00:00:07]} 4.d3 {[%clk
01:42:09][%emt 00:00:08]} 4...Bc5 {[%clk 01:40:34][%emt 00:00:58]} 5.c3 {[%clk
01:42:27][%emt 00:00:12]} 5...a6 {[%clk 01:40:55][%emt 00:00:09]} 6.O-O {[%clk
01:41:52][%emt 00:01:05]} 6...Ba7 {[%clk 01:39:35][%emt 00:01:50]} 7.a4 {[%clk
01:40:41][%emt 00:01:40]} 7...d6 {[%clk 01:39:37][%emt 00:00:29]} 8.Re1 {[%clk
01:40:01][%emt 00:01:10]} 8...O-O {[%clk 01:39:22][%emt 00:00:45]} 9.h3 {[%clk
01:39:54][%emt 00:00:37]} 9...h6 {[%clk 01:39:36][%emt 00:00:16]} 10.Nbd2 
{[%clk 01:39:55][%emt 00:00:29]} 10...Re8 {[%clk 01:39:58][%emt 00:00:08]} 
11.b4 {[%clk 01:40:06][%emt 00:00:19]} 11...Be6 {[%clk 01:40:23][%emt 00:00:05]} 
12.Bxe6 {[%clk 01:40:05][%emt 00:00:31]} 12...Rxe6 {[%clk 01:40:49][%emt
00:00:04]} 13.Qc2 {[%clk 01:40:06][%emt 00:00:28]} 13...Qd7 {[%clk
01:35:38][%emt 00:05:42]} 14.Rb1 {[%clk 01:40:02][%emt 00:00:34]} 14...Rd8 
{[%clk 01:34:27][%emt 00:01:41]} 15.b5 {[%clk 01:33:44][%emt 00:06:48]} 
15...Ne7 {[%clk 01:33:17][%emt 00:01:40]} 16.d4 {[%clk 01:33:17][%emt 00:00:57]} 
16...Ng6 {[%clk 01:33:40][%emt 00:00:07]} 17.d5 {[%clk 01:29:26][%emt 00:04:21]} 
17...Ree8 {[%clk 01:34:03][%emt 00:00:07]} 18.c4 {[%clk 01:27:15][%emt
00:02:41]} 18...Bc5 {[%clk 01:16:59][%emt 00:17:35]} 19.Nb3 {[%clk
01:20:24][%emt 00:07:20]} 19...Bb4 {[%clk 01:16:41][%emt 00:00:48]} 20.Bd2 
{[%clk 01:16:15][%emt 00:04:40]} 20...Bxd2 {[%clk 01:15:39][%emt 00:01:32]} 
21.Nfxd2 {[%clk 01:05:02][%emt 00:11:42]} 21...b6 {[%clk 01:15:47][%emt
00:00:22]} 22.a5 {[%clk 01:04:04][%emt 00:01:28]} 22...axb5 {[%clk
01:15:04][%emt 00:01:13]} 23.cxb5 {[%clk 01:03:44][%emt 00:00:51]} 23...Qxb5 
{[%clk 01:15:03][%emt 00:00:30]} 24.Nd4 {[%clk 00:57:25][%emt 00:06:48]} 
24...Qxa5 {[%clk 01:02:59][%emt 00:12:35]} 25.Nc6 {[%clk 00:56:01][%emt
00:01:54]} 25...Qc5 {[%clk 01:01:45][%emt 00:01:44]} 26.Qxc5 {[%clk
00:50:16][%emt 00:06:15]} 26...dxc5 {[%clk 01:01:32][%emt 00:00:43]} 27.Nxd8 
{[%clk 00:50:41][%emt 00:00:05]} 27...Rxd8 {[%clk 01:01:57][%emt 00:00:05]} 
28.Nc4 {[%clk 00:43:39][%emt 00:07:31]} 28...Ne8 {[%clk 01:02:03][%emt
00:00:25]} 29.Re3 {[%clk 00:37:57][%emt 00:06:12]} 29...f6 {[%clk 01:01:58][%emt
00:00:36]} 30.Ra3 {[%clk 00:36:36][%emt 00:01:50]} 30...Nh8 {[%clk
00:53:37][%emt 00:08:51]} 31.Rba1 {[%clk 00:23:31][%emt 00:13:35]} 31...Nf7 
{[%clk 00:51:28][%emt 00:02:39]} 32.Ra8 {[%clk 00:22:43][%emt 00:01:18]} 
32...Rxa8 {[%clk 00:51:26][%emt 00:00:33]} 33.Rxa8 {[%clk 00:23:11][%emt
00:00:02]} 33...Kf8 {[%clk 00:51:51][%emt 00:00:04]} 34.d6 {[%clk 00:14:29][%emt
00:09:12]} 34...Nxd6 {[%clk 00:51:12][%emt 00:01:09]} 35.Nxd6 {[%clk
00:14:24][%emt 00:00:35]} 35...cxd6 {[%clk 00:51:39][%emt 00:00:03]} 36.Rb8 
{[%clk 00:14:47][%emt 00:00:07]} 36...Ke7 {[%clk 00:48:36][%emt 00:03:33]} 
37.Rxb6 {[%clk 00:14:42][%emt 00:00:35]} 37...h5 {[%clk 00:45:18][%emt
00:03:49]} 38.Kf1 {[%clk 00:11:19][%emt 00:03:53]} 38...g6 {[%clk 00:45:31][%emt
00:00:16]} 39.Ke2 {[%clk 00:08:53][%emt 00:02:56]} 39...f5 {[%clk 00:45:12][%emt
00:00:49]} 40.f3 {[%clk 00:06:49][%emt 00:02:34]} 40...Nf6 {[%clk 00:42:42][%emt
00:03:00]} 41.Kd3 {[%clk 00:49:55][%emt 00:07:23]} 1/2-1/2